Cogmind - Beta 12 @@@ ROGUE MODE // 2023.11.01 @ 21:56:28 Player: Shin Result: Destroyed by L-41 Fighter with Axe Performance ------------- Evolutions (3) 1500 Regions Visited (9) 1800 Robots Destroyed (143) 715 Value Destroyed (7358) 7358 Prototype IDs (4) 80 Alien Tech Used (0) 0 Bonus (4499) 4499 TOTAL SCORE: 15952 Bonus ------- Triggered High Security 500 High Alert Combat Kills 2376 Follower Combat Kills 309 Entered Garrisons 400 Used RIF Installer 1000 Friendly Fire -86 Cogmind --------- Core Integrity 0/700 Matter 183/300 Energy 100/100 System Corruption 1% Temperature Cool (0) Movement Core (1350) Ox26 Location -7/Factory Parts ------- > --- POWER (1) -------- (None) > --- PROPULSION (4) --- (None) > --- UTILITY (6) ------ Huge Storage Unit > --- WEAPON (2) ------- (None) > --- INVENTORY (25) --- Improved Light Armor Plating Medium Reactive Plating Improved Focal Shield Hardlight Generator Advanced Shield Generator Remote Shield Relay Coupler [Sentry] (30) Relay Coupler [Hunter] (17) Relay Coupler [Hunter] (13) Relay Coupler [Hunter] (19) Relay Coupler [Hunter] (17) Relay Coupler [Heavy] (12) System Restoration Module Long-range Tractor Beam Improved Field Recycling Unit (0) Gatling Laser Remote Datajack Peak State ------------ > --- POWER ------------ Light Angular Momentum Engine > --- PROPULSION ------- VSS Leg VSS Leg Armored Huge Wheel > --- UTILITY ---------- Improved Heat Sink Huge Storage Unit Improved Signal Interpreter Layered Medium Armor Plating Medium Reactive Plating Relay Coupler [Sentry] > --- WEAPON ----------- Heavy Mass Driver > --- INVENTORY -------- Improved Sensor Array Kinecellerator Layered Medium Armor Plating Layered Medium Armor Plating Layered Medium Armor Plating Hardlight Generator Remote Shield Hacking Suite Hacking Suite Relay Coupler [Sentry] Relay Coupler [Sentry] Relay Coupler [Sentry] Relay Coupler [Hunter] Relay Coupler [Hunter] Relay Coupler [Hunter] Relay Coupler [Heavy] Relay Coupler [Behemoth] System Restoration Module Improved Field Recycling Unit Heavy Mass Driver Heavy Mass Driver Improved Grenade Launcher Remote Datajack [Rating: 62] Favorites ----------- Power Light Nuclear Core Engine Deuterium Engine Power Core Light Nuclear Core Propulsion Armored Treads Treads Armored Treads Leg VSS Leg Wheel Compact Wheel Hover Unit Aerolev Unit Flight Unit Improved Flight Unit Utility Improved Heat Sink Device Improved Heat Sink Storage Huge Storage Unit Processor Improved Signal Interpreter Hackware Relay Coupler [Sentry] Protection Medium Reactive Plating Weapon Minigun Energy Gun Field Laser Ballistic Gun Minigun Ballistic Cannon Heavy Mass Driver Launcher Improved Grenade Launcher Special Weapon Remote Datajack Build | -11 -10 -10 -9 -9 -8 -8 -7 -7 -7 ------- Run | Jun Mat Min Mat Min Mat Gar Fac Gar Fac Slots Evolved 6 | . . . 2 . 2 . 2 . . Power . | . . . . . . . . . . Propulsion 2 | . . . 2 . . . . . . Utility 4 | . . . . . 2 . 2 . . Weapon . | . . . . . . . . . . Parts Attached 156 | . 18 . 10 1 42 18 13 39 15 Power 16 | . 1 . 1 . 3 2 2 5 2 Engine 9 | . 1 . 1 . 1 1 2 2 1 Core 7 | . . . . . 2 1 . 3 1 Reactor . | . . . . . . . . . . Propulsion 42 | . 8 . 4 1 18 2 1 6 2 Treads 17 | . 3 . . . 7 2 . 4 1 Leg 10 | . 3 . . . 4 . . 2 1 Wheel 8 | . . . . 1 6 . 1 . . Hover 1 | . . . . . 1 . . . . Flight 6 | . 2 . 4 . . . . . . Utility 51 | . 3 . 2 . 13 8 3 17 5 Device 24 | . 1 . 2 . 4 4 2 8 3 Storage 3 | . 1 . . . 2 . . . . Processor 2 | . 1 . . . . . 1 . . Hackware 4 | . . . . . . . . 4 . Protection 18 | . . . . . 7 4 . 5 2 Artifact . | . . . . . . . . . . Weapon 47 | . 6 . 3 . 8 6 7 11 6 Energy Gun 12 | . 6 . 2 . 4 . . . . Energy Cannon . | . . . . . . . . . . Ballistic Gun 13 | . . . . . 3 4 5 1 . Ballistic Cannon 10 | . . . . . 1 . . 6 3 Launcher 8 | . . . . . . 2 2 1 3 Special Weapon 4 | . . . 1 . . . . 3 . Impact Weapon . | . . . . . . . . . . Slashing Weapon . | . . . . . . . . . . Piercing Weapon . | . . . . . . . . . . Special Melee Weapon . | . . . . . . . . . . Unidentified Prototypes 2 | . 1 . . . 1 . . . . Parts Lost 41 | . 3 . . 3 1 7 . 13 14 Power 6 | . . . . . . 2 . 2 2 Propulsion 18 | . 2 . . 3 1 2 . 6 4 Utility 12 | . . . . . . 2 . 4 6 Weapon 5 | . 1 . . . . 1 . 1 2 Highest Loss Streak 12 | . 1 . . 3 1 3 . 3 12 To Critical Strikes . | . . . . . . . . . . Average Slot Usage (%) 83 | . 92 85 97 85 95 99 92 69 85 Engine 4 | . 14 14 11 11 6 4 4 1 5 Core 2 | . . . . . 2 3 2 2 1 Treads 10 | . 5 28 . . 19 19 15 3 22 Leg 5 | . 18 . . . 1 . . 6 3 Wheel 5 | . . . . 1 11 16 7 3 . Flight 1 | . 3 . 42 39 . . . . . Device 10 | . 3 . 10 11 10 9 18 10 20 Storage 8 | . 14 14 11 11 9 9 7 7 7 Processor 4 | . 3 . . . . . 7 7 4 Hackware 2 | . . . . . . . . 4 3 Protection 10 | . . . . . 16 17 11 9 6 Energy Gun 4 | . 21 28 13 11 8 1 . . . Ballistic Gun 6 | . 5 . . . 8 16 15 3 . Ballistic Cannon 3 | . . . . . . . . 5 5 Naked Turns . | . . . . . . . . . . Heaviest Build 138 | 12 18 18 20 17 137 137 125 138 134 Greatest Support 80 | 20 40 40 19 19 60 60 28 60 80 Greatest Overweight (x) 37 | . 2 . 1 1 7 3 7 37 33 Average Overweight (x) 2 | . . . . . 1 1 4 7 1 Largest Inventory Capacity 25 | . 10 10 10 10 25 25 25 25 25 Average Capacity 21 | . 8 10 10 10 13 25 25 25 25 Most Carried 25 | . 10 10 10 10 25 25 25 25 25 Average Carried 20 | . 7 10 9 9 12 24 24 24 24 Final Capacity 25 | 8 10 10 10 10 25 25 25 25 25 Final Carried 25 | 6 10 10 10 9 25 25 25 25 17 Class Distribution -------------------- 43% | Mutant 31% | Bothacker-Mutant 13% | Commander-Mutant 9% | Scavenger-Mutant Dominant Class ---------------- Mutant | -10/Materials Mutant | -10/Mines Sprinter | -9/Materials Sprinter | -9/Mines Mutant | -8/Materials Mutant | -8/Garrison Mutant | -7/Factory Bothacker-Mutant | -7/Garrison Bothacker-Mutant | -7/Factory Resources | -11 -10 -10 -9 -9 -8 -8 -7 -7 -7 ----------- Run | Jun Mat Min Mat Min Mat Gar Fac Gar Fac Matter Collected 4259 | 173 296 . . 100 1145 824 404 909 408 Remotely . | . . . . . . . . . . Salvage Created 5629 | . 615 . . . 2219 976 602 813 404 Parts 300 | . 30 . . . 118 55 29 51 17 Haulers Intercepted 4 | . 1 . . . 3 . . . . Recyclers Shooed 6 | . 2 . . . 2 . 2 . . Parts Field Recycled . | . . . . . . . . . . Retrieved Matter . | . . . . . . . . . . Parts Self-Destructed . | . . . . . . . . . . Prevented . | . . . . . . . . . . Kills | -11 -10 -10 -9 -9 -8 -8 -7 -7 -7 ------- Run | Jun Mat Min Mat Min Mat Gar Fac Gar Fac Combat Hostiles Destroyed 119 | . 11 . . . 34 24 12 24 14 Guns 81 | . 11 . . . 34 19 6 11 . Cannons 15 | . . . . . . . . 9 6 AOE 23 | . . . . . . 5 6 4 8 Classes Destroyed 17 | . 6 . . . 7 2 1 1 . Worker 2 | . 1 . . . 1 . . . . Builder 1 | . . . . . 1 . . . . Tunneler 1 | . . . . . 1 . . . . Hauler 4 | . 1 . . . 3 . . . . Recycler 9 | . 1 . . . 5 . 3 . . Mechanic 1 | . . . . . 1 . . . . Watcher 6 | . 3 . . . 3 . . . . Swarmer 24 | . 3 . . . 6 5 2 6 2 Cutter 4 | . . . . . . 1 . 3 . Grunt 48 | . 8 . . . 14 7 6 4 9 Brawler 2 | . . . . . 1 . . . 1 Duelist 3 | . . . . . 1 . 1 . 1 Protector 1 | . . . . . . . 1 . . Sentry 23 | . . . . . 10 8 . 5 . Specialist 2 | . . . . . . . . 2 . Hunter 3 | . . . . . 2 1 . . . Programmer 9 | . . . . . . 2 2 4 1 Best Kill Streak 7 | . 3 . . . 5 3 7 4 5 Combat Bots Only 7 | . 3 . . . 4 3 7 4 5 Max Kills in Single Turn 4 | . 1 . . . 2 2 4 1 2 Gunslinging 1 | . . . . . . 1 . . . Exploded 4 | . . . . . . 2 4 1 2 Melee . | . . . . . . . . . . Uniques/NPCs Destroyed . | . . . . . . . . . . Combat | -11 -10 -10 -9 -9 -8 -8 -7 -7 -7 -------- Run | Jun Mat Min Mat Min Mat Gar Fac Gar Fac Damage Taken 9818 | . 600 . 222 253 1593 1557 599 2400 2594 Core 1440 | . 115 . 75 122 209 196 35 289 399 Absorbed by Shields 46 | . . . . . . . . . 46 Regen/Repaired (Parts) 185 | . 59 . . . 126 . . . . Core Remaining (%) 57 | 100 . 54 . 50 . 26 . . . Volleys Fired 454 | . 63 . 2 . 135 87 33 100 34 Largest 2 | . 2 . 1 . 2 2 2 2 1 Hottest 126 | . 90 . 20 . 126 94 56 96 75 Shots Fired 761 | . 126 . 2 . 269 159 63 108 34 Gun 665 | . 126 . . . 269 153 61 56 . Cannon 61 | . . . . . . . . 35 26 Launcher 21 | . . . . . . 6 2 5 8 Special 14 | . . . 2 . . . . 12 . Kinetic 536 | . 33 . . . 180 145 61 91 26 Thermal 182 | . 83 . 2 . 89 8 . . . Explosive 21 | . . . . . . 6 2 5 8 Electromagnetic 10 | . 10 . . . . . . . . Robot Hit Streak 16 | . 9 . . . 16 16 6 11 8 Robot Miss Streak 7 | . 4 . . . 7 4 2 3 1 Penetration Max 1 | . . . . . 1 . . 1 . Secondary Targets 9 | . 2 . . . 2 4 1 . . Max Gunslinging Chain 1 | . 1 . . . 1 1 1 . . Shots Hit Robots 507 | . 84 . . . 188 102 42 64 27 Core Hits 238 | . 31 . . . 83 41 27 34 22 Critical Kills 1 | . . . . . 1 . . . . Critical Parts Destroyed 2 | . . . . . . 1 . 1 . Critical Strikes 18 | . 7 . . . 5 1 . 2 3 Burn 10 | . 6 . . . 4 . . . . Destroy 3 | . . . . . 1 1 . 1 . Blast 4 | . . . . . . . . 1 3 Corrupt 1 | . 1 . . . . . . . . Melee Attacks . | . . . . . . . . . . Impact . | . . . . . . . . . . Slashing . | . . . . . . . . . . Piercing . | . . . . . . . . . . Sneak Attacks . | . . . . . . . . . . Combat Hostiles . | . . . . . . . . . . Follow-up Attacks . | . . . . . . . . . . Damage Inflicted 13300 | . 1060 . . . 3375 2249 1738 2097 2781 Guns 7932 | . 1060 . . . 3371 1827 832 842 . Cannons 2596 | . . . . . . . . 889 1707 Explosions 2768 | . . . . . . 422 906 366 1074 Melee . | . . . . . . . . . . Ramming 4 | . . . . . 4 . . . . Kinetic 8536 | . 283 . . . 2273 1710 832 1731 1707 Thermal 1909 | . 694 . . . 1098 117 . . . Explosive 2768 | . . . . . . 422 906 366 1074 Electromagnetic 83 | . 83 . . . . . . . . Impact . | . . . . . . . . . . Slashing . | . . . . . . . . . . Piercing . | . . . . . . . . . . Highest Corruption 2 | . . . 1 1 . 1 2 1 1 Average Corruption 1 | . . . 1 1 . 1 1 1 1 Corruption Purged 4 | . . . . . . . 2 2 . Corruption Blocked . | . . . . . . . . . . Effects 13 | . . . . 2 . 10 . . 1 Message Errors 2 | . . . . . . 2 . . . Matter Fused 4 | . . . . 1 . 3 . . . Heat Flow Errors 2 | . . . . . . 1 . . 1 Energy Discharges 1 | . . . . . . 1 . . . Data Loss (minor) 2 | . . . . . . 2 . . . Data Loss (major) 1 | . . . . . . 1 . . . Alerts 1 | . . . . 1 . . . . . Overload Shots . | . . . . . . . . . . Overflow Damage 311 | . . . . . . 8 4 34 265 Projectiles 244 | . . . . . . . . . 244 Explosions 67 | . . . . . . 8 4 34 21 Melee . | . . . . . . . . . . Knockbacks 10 | . . . . . . . . 2 8 Impact . | . . . . . . . . . . Kinetic 10 | . . . . . . . . 2 8 Secondary . | . . . . . . . . . . Self-Inflicted Damage 289 | . . . . . 48 26 186 29 . Shots 8 | . . . . . 1 2 4 1 . Rammed 1 | . . . . . 1 . . . . Targets Rammed 1 | . . . . . 1 . . . . Kicked . | . . . . . . . . . . Crushed . | . . . . . . . . . . Highest Temperature 240 | . 240 . 1 . 236 159 9 48 216 Average Temperature 50 | . 77 . 1 . 46 27 9 13 39 Received Heat Transfer 3376 | . 375 . 63 . 702 450 90 822 874 Siege Activations . | . . . . . . . . . . Robots Corrupted . | . . . . . . . . . . Combat Hostiles . | . . . . . . . . . . Parts Fried . | . . . . . . . . . . Impact Corruptions . | . . . . . . . . . . Robots Melted . | . . . . . . . . . . Combat Hostiles . | . . . . . . . . . . Parts Melted 12 | . 4 . . . 7 . . 1 . Heat Transferred 5296 | . 2410 . . . 2664 222 . . . Parts Sabotaged . | . . . . . . . . . . Parts Stolen . | . . . . . . . . . . Parts Stripped . | . . . . . . . . . . Power Chain Reactions . | . . . . . . . . . . Missiles Intercepted . | . . . . . . . . . . Alert | -11 -10 -10 -9 -9 -8 -8 -7 -7 -7 ------- Run | Jun Mat Min Mat Min Mat Gar Fac Gar Fac Peak Influence 4700 | . 200 4 136 95 876 1677 934 4700 2790 Initial 2467 | . . 4 1 52 23 569 879 653 2467 Average 1535 | . 33 4 51 77 204 1221 817 2509 2534 Maximum Alert Level 5 | . 1 . . . 3 5 3 5 5 Low Security (%) 25 | . 99 100 100 100 74 . . . . Level 1 . | . . . . . 4 . . . . Level 2 3 | . . . . . 8 3 12 1 . Level 3 19 | . . . . . 12 25 87 17 . Level 4 14 | . . . . . . 64 . 14 . Level 5 34 | . . . . . . 6 . 66 60 High Security 2 | . . . . . . . . . 39 Max Security . | . . . . . . . . . . Squads Dispatched 33 | . 4 . . . 8 . 4 . 17 Investigation 2 | . 2 . . . . . . . . Extermination 2 | . . . . . . . 1 . 1 Reinforcement 6 | . 2 . . . 4 . . . . Assault 19 | . . . . . 1 . 2 . 16 Garrison 4 | . . . . . 3 . 1 . . Intercept . | . . . . . . . . . . Searches Triggered . | . . . . . . . . . . Construction Impeded . | . . . . . . . . . . Haulers Reinforced . | . . . . . . . . . . Active Scanning Responses . | . . . . . . . . . . Cargo Convoy Interrupts . | . . . . . . . . . . Stealth | -11 -10 -10 -9 -9 -8 -8 -7 -7 -7 --------- Run | Jun Mat Min Mat Min Mat Gar Fac Gar Fac Distress Signals 2 | . 1 . . . 1 . . . . Communications Jammed . | . . . . . . . . . . Distress Signals . | . . . . . . . . . . Times Spotted 229 | . 20 . 12 15 54 28 15 30 55 Peak Tracking Total 26 | . 7 . 9 10 8 5 5 5 26 Tactical Retreats 10 | . . . 2 2 3 . . . 3 Traps | -11 -10 -10 -9 -9 -8 -8 -7 -7 -7 ------- Run | Jun Mat Min Mat Min Mat Gar Fac Gar Fac Traps Triggered 19 | . 1 . 2 . . 7 . 9 . Indirectly . | . . . . . . . . . . Trap Hack Attempts . | . . . . . . . . . . Triggered . | . . . . . . . . . . Disarmed . | . . . . . . . . . . Reprogrammed . | . . . . . . . . . . Reused . | . . . . . . . . . . Traps Extracted . | . . . . . . . . . . Installed . | . . . . . . . . . . Triggered . | . . . . . . . . . . Exploded 1 | . . . . . . 1 . . . Machines | -11 -10 -10 -9 -9 -8 -8 -7 -7 -7 ---------- Run | Jun Mat Min Mat Min Mat Gar Fac Gar Fac Machines Disabled 23 | . . . . . 5 7 4 7 . Max in Single Turn 2 | . . . . . 2 1 2 2 . Garrison Relay 12 | . . . . . . 8 . 4 . Phase Generator 2 | . . . . . . 1 . 1 . Machines Repaired . | . . . . . . . . . . Machines Sabotaged . | . . . . . . . . . . Overloaded Fab Kills . | . . . . . . . . . . Hacking | -11 -10 -10 -9 -9 -8 -8 -7 -7 -7 --------- Run | Jun Mat Min Mat Min Mat Gar Fac Gar Fac Machines Accessed 33 | . 9 . . . 13 3 3 4 1 Terminals 22 | . 6 . . . 7 3 1 4 1 Fabricators . | . . . . . . . . . . Repair Stations 4 | . 1 . . . 2 . 1 . . Recycling Units 3 | . 2 . . . 1 . . . . Scanalyzers 2 | . . . . . 2 . . . . Garrison Access 2 | . . . . . 1 . 1 . . Total Hacks 86 | . 31 . . . 37 5 6 5 2 Successful 48 | . 17 . . . 24 1 3 2 1 Failed 38 | . 14 . . . 13 4 3 3 1 Catastrophic 8 | . 2 . . . 3 1 . 1 1 Database Lockouts . | . . . . . . . . . . Manual 32 | . 19 . . . 12 . . . 1 Terminals 55 | . 20 . . . 21 5 2 5 2 Fabricators . | . . . . . . . . . . Repair Stations 11 | . 3 . . . 6 . 2 . . Recycling Units 13 | . 8 . . . 5 . . . . Scanalyzers 4 | . . . . . 4 . . . . Garrison Access 3 | . . . . . 1 . 2 . . Terminal Hacks 22 | . 8 . . . 10 1 1 2 . Robot Analysis 1 | . 1 . . . . . . . . Prototype ID Bank 1 | . . . . . 1 . . . . Open Door 2 | . . . . . . 1 . 1 . Open DSF 1 | . . . . . . . 1 . . Branch Access Points 1 | . . . . . 1 . . . . Emergency Access Points 1 | . . . . . 1 . . . . Locate Traps 2 | . 1 . . . 1 . . . . Dispatch Records 2 | . 1 . . . 1 . . . . Assault Status 1 | . . . . . 1 . . . . Recall Investigation 1 | . 1 . . . . . . . . Recall Reinforcements 2 | . 1 . . . 1 . . . . Hauler Manifests 2 | . 1 . . . 1 . . . . Zone Layout 4 | . 2 . . . 2 . . . . Garrison Registry 1 | . . . . . . . . 1 . Fabricator Hacks . | . . . . . . . . . . Repair Station Hacks 6 | . 2 . . . 4 . . . . Scan Component 3 | . 1 . . . 2 . . . . Repair 3 | . 1 . . . 2 . . . . Recycling Unit Hacks 3 | . 1 . . . 2 . . . . Report Inventory 2 | . 1 . . . 1 . . . . Retrieve Components 1 | . . . . . 1 . . . . Scanalyzer 3 | . . . . . 3 . . . . Insert Component 2 | . . . . . 2 . . . . Analyze 1 | . . . . . 1 . . . . Garrison Access Hacks 3 | . . . . . 1 . 2 . . Unlock Access 2 | . . . . . 1 . 1 . . Coupler Status 1 | . . . . . . . 1 . . Unauthorized Hacks 11 | . 6 . . . 4 . . . 1 Terminals 5 | . 2 . . . 2 . . . 1 Botnet 5 | . 2 . . . 2 . . . 1 Fabricators . | . . . . . . . . . . Repair Stations . | . . . . . . . . . . Recycling Units 6 | . 4 . . . 2 . . . . Reject 3 | . 2 . . . 1 . . . . Mask 3 | . 2 . . . 1 . . . . Scanalyzers . | . . . . . . . . . . Garrison Access . | . . . . . . . . . . Data Cores Recovered . | . . . . . . . . . . Used . | . . . . . . . . . . Hacking Detections 26 | . 8 . . . 12 2 1 2 1 Full Trace Events 1 | . 1 . . . . . . . . Feedback Events . | . . . . . . . . . . Feedback Blocked . | . . . . . . . . . . Robot Schematics Acquired . | . . . . . . . . . . Robots Built . | . . . . . . . . . . Authchips . | . . . . . . . . . . Time . | . . . . . . . . . . Total Robot Build Rating . | . . . . . . . . . . Part Schematics Acquired 1 | . . . . . 1 . . . . Parts Built . | . . . . . . . . . . Authchips . | . . . . . . . . . . Time . | . . . . . . . . . . Total Part Build Rating . | . . . . . . . . . . Parts Repaired 3 | . 1 . . . 2 . . . . Time 102 | . 26 . . . 76 . . . . Parts Recycled . | . . . . . . . . . . Recycled Matter . | . . . . . . . . . . Retrieved Matter . | . . . . . . . . . . Retrieved Components 10 | . . . . . 10 . . . . Parts Scanalyzed 1 | . . . . . 1 . . . . Part Schematics Acquired 1 | . . . . . 1 . . . . Parts Damaged . | . . . . . . . . . . Bothacking | -11 -10 -10 -9 -9 -8 -8 -7 -7 -7 ------------ Run | Jun Mat Min Mat Min Mat Gar Fac Gar Fac Used RIF Installer 2 | . . . . . . 1 . 1 . Signal Jammer 1 | . . . . . . . . 1 . Robots Hacked 5 | . . . . . . . . 5 . Non-combat . | . . . . . . . . . . Combat 5 | . . . . . . . . 5 . Robot Hacks Applied 5 | . . . . . . . . 5 . streamctrl_high 2 | . . . . . . . . 2 . formatsys_high 3 | . . . . . . . . 3 . Relay Couplers Released 50 | . . . . . . 33 . 13 4 Machine Destruction 46 | . . . . . . 33 . 13 . Programmers 4 | . . . . . . . . . 4 Attached 4 | . . . . . . . . 4 . Fabnet Peak Effective % . | . . . . . . . . . . Robots Rewired 2 | . . . . . . . . 2 . Allies Hacked . | . . . . . . . . . . Hacks Repelled . | . . . . . . . . . . Allies | -11 -10 -10 -9 -9 -8 -8 -7 -7 -7 -------- Run | Jun Mat Min Mat Min Mat Gar Fac Gar Fac Total Allies 12 | . . . . 3 . 2 . 7 . Largest Group 4 | . . . . 3 . 2 . 4 4 Highest-Rated Group 172 | . . . . 40 . 56 . 172 172 Highest-Rated Ally 85 | . . . . 16 . 31 . 85 85 Total Orders 12 | . . . . . . . . 8 4 STAY 7 | . . . . . . . . 5 2 FOLLOW 5 | . . . . . . . . 3 2 Ally Attacks 80 | . . . . 24 . 12 . 15 29 Total Damage 2004 | . . . . 275 . 162 . 429 1138 Kills 14 | . . . . 2 . 4 . 1 7 Allies Corrupted . | . . . . . . . . . . Allies Melted . | . . . . . . . . . . Intel | -11 -10 -10 -9 -9 -8 -8 -7 -7 -7 ------- Run | Jun Mat Min Mat Min Mat Gar Fac Gar Fac Robot Analysis Total 1 | . 1 . . . . . . . . Derelict Logs Recovered 1 | . . . . 1 . . . . . Drone Launches . | . . . . . . . . . . Drone Recoveries . | . . . . . . . . . . Exploration | -11 -10 -10 -9 -9 -8 -8 -7 -7 -7 ------------- Run | Jun Mat Min Mat Min Mat Gar Fac Gar Fac Turns Passed 14523 | . 1511 32 172 161 2370 1921 946 6508 902 Spaces Moved 5576 | 1 959 21 234 464 1127 762 487 1262 259 Core 157 | . . . . . 1 . . 155 1 Treads 1493 | . 161 21 . . 415 394 . 247 255 Legs 997 | 1 627 . . . 48 . . 318 3 Wheels 2076 | . . . . 16 663 368 487 542 . Hover . | . . . . . . . . . . Flight 853 | . 171 . 234 448 . . . . . Fastest Speed 31 | 120 37 160 31 31 90 130 160 145 240 Average Speed 224 | 120 124 160 31 34 150 211 161 487 309 Slowest Speed 1900 | 120 190 160 103 115 330 410 205 1900 1700 Overloaded Moves . | . . . . . . . . . . Propulsion Burnouts . | . . . . . . . . . . Robots Hopped 17 | . . . 9 8 . . . . . Cave-ins Triggered . | . . . . . . . . . . Exploration Rate (%) 48 | 2 88 9 21 82 82 83 13 96 7 Regions Visited 9 Branch Regions 2 Pre-discovered Areas . | . . . . . . . . . . Known Exits Taken 2 | . . . . . 1 . 1 . . Unknown Exits Taken 5 | 1 1 1 1 1 . . . . . Scrap Searched 1 | . . . . 1 . . . . . Spaces Dug 7 | . . . . . . . . 7 . Terrain Destroyed 289 | . . . . . 25 68 37 110 49 Melee . | . . . . . . . . . . Projectile 15 | . . . . . 2 . . 6 7 AOE 274 | . . . . . 23 68 37 104 42 Terrain Rammed . | . . . . . . . . . . Walls Destroyed . | . . . . . . . . . . Machines Disabled . | . . . . . . . . . . Actions | -11 -10 -10 -9 -9 -8 -8 -7 -7 -7 --------- Run | Jun Mat Min Mat Min Mat Gar Fac Gar Fac Total 6887 | . 1153 20 322 459 1561 942 590 1517 323 Wait 415 | . 86 . 69 1 177 34 42 6 . Move 5536 | . 958 20 216 448 1126 761 487 1261 259 Hop 15 | . . . 8 7 . . . . . Pick Up 119 | . 15 . 6 1 42 13 7 30 5 Fast Attach 32 | . 4 . 3 . 12 1 . 10 2 Attach 64 | . 7 . 6 1 10 6 3 18 13 Detach 12 | . 1 . 4 . 1 . . 4 2 Swap 60 | . 7 . 1 . 20 11 10 11 . Drop 109 | . 12 . 7 1 37 7 8 29 8 Fire 454 | . 63 . 2 . 135 87 33 100 34 Melee . | . . . . . . . . . . Ram 1 | . . . . . 1 . . . . Kick . | . . . . . . . . . . Crush . | . . . . . . . . . . Escape Stasis 58 | . . . . . . 22 . 36 . Rewire 12 | . . . . . . . . 12 . Trap . | . . . . . . . . . . Miscellaneous . | . . . . . . . . . . Route ------- -11/Junkyard -10/Materials (discovered 5 exits: [*Mat x3] / [*Min x2]) -10/Mines -9/Materials -9/Mines -8/Materials (discovered 4 exits: *Fac x2 / *Sto / Gar) -8/Garrison (discovered 3 exits: *Fac x3) -7/Factory -7/Garrison (discovered 3 exits: *Fac x3) -7/Factory History --------- Turn | Location | Event 1 | -11/Junkyard | Discovered new exit (range 0) 1 | -11/Junkyard | Entered Materials 292 | -10/Materials | Discovered new exit (range 9) 309 | -10/Materials | Build established: Mutant 332 | -10/Materials | Discovered new exit (range 16) 548 | -10/Materials | Discovered new exit (range 13) 777 | -10/Materials | Discovered new exit (range 16) 981 | -10/Materials | Discovered new exit (range 13) 1345 | -10/Materials | Repaired Med. Laser 1512 | -10/Materials | Entered Mines 1533 | -10/Mines | Discovered new exit (range 3) 1544 | -10/Mines | Entered Materials 1544 | -9/Materials | Evolved 2 slots: Propulsion x2 1711 | -9/Materials | Discovered new exit (range 13) 1716 | -9/Materials | Entered Mines 1729 | -9/Mines | Assisted by bots powering up and referring to "LRC-V3" 1754 | -9/Mines | Learned Materials stockpile data 1828 | -9/Mines | Assembled infested the area 1843 | -9/Mines | Build established: Sprinter 1867 | -9/Mines | Discovered new exit (range 9) 1877 | -9/Mines | Entered Materials 1877 | -8/Materials | Evolved 2 slots: Utility x2 1889 | -8/Materials | Lost 3 parts (3n) 1936 | -8/Materials | Repaired Field Laser 2153 | -8/Materials | Build established: Mutant 2786 | -8/Materials | Repaired Insulated Plating 2923 | -8/Materials | Discovered new exit (range 11) 3706 | -8/Materials | Garrison activated, responded to threat 3877 | -8/Materials | First assault squad dispatched 4075 | -8/Materials | Identified exit to Garrison 4114 | -8/Materials | Discovered new exit (range 16) 4116 | -8/Materials | Discovered new exit (range 13) 4202 | -8/Materials | Identified exit to Storage 4247 | -8/Materials | Entered Garrison 4353 | -8/Garrison | Spotted B-75 Beast 4354 | -8/Garrison | Spotted B-75 Beast 4462 | -8/Garrison | Triggered checkpoint 4496 | -8/Garrison | Garrison Relay disabled 4527 | -8/Garrison | Rescued a captive Derelict 4528 | -8/Garrison | Rescued a captive Derelict 4614 | -8/Garrison | Triggered checkpoint 4702 | -8/Garrison | Core integrity fell below 50% 4785 | -8/Garrison | Lost 3 parts (1p1n1u) 4807 | -8/Garrison | Garrison Relay disabled 4816 | -8/Garrison | Garrison Relay disabled 4874 | -8/Garrison | Discovered new exit (range 11) 4922 | -8/Garrison | Triggered checkpoint 4994 | -8/Garrison | Garrison Relay disabled 5282 | -8/Garrison | Triggered checkpoint 5333 | -8/Garrison | Lost 3 parts (1p1n1w) 5381 | -8/Garrison | Phase Generator disabled 5511 | -8/Garrison | Discovered new exit (range 10) 5582 | -8/Garrison | Triggered checkpoint 5658 | -8/Garrison | Garrison Relay disabled 5715 | -8/Garrison | Installed Relay Interface Framework 5924 | -8/Garrison | Triggered checkpoint 6024 | -8/Garrison | Triggered checkpoint 6083 | -8/Garrison | Garrison Relay disabled 6146 | -8/Garrison | Discovered new exit (range 10) 6168 | -8/Garrison | Entered Factory 6168 | -7/Factory | Evolved 2 slots: Utility x2 6568 | -7/Factory | First assault squad dispatched 7055 | -7/Factory | Build established: Scavenger-Mutant 7083 | -7/Factory | Garrison activated, responded to threat 7113 | -7/Factory | Destroyed 7 combat bots 7114 | -7/Factory | Identified exit to Garrison 7114 | -7/Factory | Entered Garrison 7180 | -7/Garrison | Triggered checkpoint 7231 | -7/Garrison | Garrison Relay disabled 7358 | -7/Garrison | Triggered checkpoint 7371 | -7/Garrison | Triggered checkpoint 7570 | -7/Garrison | Build established: Bothacker-Mutant 7701 | -7/Garrison | Discovered new exit (range 15) 7774 | -7/Garrison | Triggered checkpoint 7843 | -7/Garrison | Garrison Relay disabled 8316 | -7/Garrison | Discovered new exit (range 9) 8346 | -7/Garrison | Triggered checkpoint 8476 | -7/Garrison | Discovered new exit (range 73) 8476 | -7/Garrison | Discovered new exit (range 7) 8476 | -7/Garrison | Discovered new exit (range 50) 8554 | -7/Garrison | Garrison Relay disabled 8660 | -7/Garrison | Expanded RIF knowledge: Signal Jamming 8970 | -7/Garrison | Phase Generator disabled 9620 | -7/Garrison | Triggered checkpoint 9844 | -7/Garrison | Triggered checkpoint 9845 | -7/Garrison | Garrison Relay disabled 9948 | -7/Garrison | Spotted B-75 Beast 9973 | -7/Garrison | Assimilated Beast 4a with formatsys_high 10656 | -7/Garrison | Lost 3 parts (1n1u1w) 11091 | -7/Garrison | Build established: Commander-Mutant 13111 | -7/Garrison | Build established: Scavenger-Mutant 13565 | -7/Garrison | Build established: Bothacker-Mutant 13603 | -7/Garrison | Identified exit to Factory 13622 | -7/Garrison | Entered Factory 13622 | -7/Factory | Accompanied by 4 allies 14022 | -7/Factory | First assault squad dispatched 14171 | -7/Factory | High security lockdown imminent 14251 | -7/Factory | High security lockdown engaged 14320 | -7/Factory | Core integrity fell below 50% 14513 | -7/Factory | Core integrity fell below 20% 14524 | -7/Factory | Destroyed by L-41 Fighter with Axe Last Messages --------------- 14501_ C-30 ARC bursts open, deploying its payload. 14501_ H-55 Commando unfolds itself. 14501_ I-36 Angel unfolds itself. 14505_ Lgt. Treads destroyed. 14505_ Lyr. Medium Armor Plating destroyed. 14505_ Hvy. Mass Driver destroyed. 14507_ Lgt. Treads destroyed. 14510_ Imp. Kinecellerator destroyed. 14511_ Penetrated by Slug. 14513_ M-28 Smith repairs G-47 Trooper. 14513_ Rnf. Deuterium Engine destroyed. 14517_ Weapon Mount destroyed. 14517_ Lyr. Medium Armor Plating severed. 14517_ Critical hit (Burn: +37). 14518_ Imp. Sensor Array destroyed. 14519_ Imp. Heat Sink destroyed. 14519_ M-28 Smith repairs G-50 Soldier. 14521_ ALERT: Heavy assault forces dispatched. 14521_ Slug penetrates Wall. 14523_ Lyr. Medium Armor Plating destroyed. Map ----- +----------------------------------------------------+ | | | | | | | | | | | ?????????????????????????????????????????????????? | | ?????????????????????????????????????????????????? | | ?????????????????????????????????????????????????? | | ?????????????????????????????????????????????????? | | ?????????????????????????????????????????????????? | | ?????????????????????????????????????????????????? | | ?????????????????????????????????????????????????? | | ?????????????????????????????????????????????????? | | ?????????????????????????????????????????????????? | | ?????????????????????????????????????????????????? | | ????????????????????###+###??????????????????????? | | ????????????????????# +??????????????????????? | | ????????????????????# #??????????????????????? | | ????????????????????# #??????????????????????? | | ????????????????????+ +??????????????????????? | | ????????????????????# #??????????????????????? | | ????????????????????# #??????????????????????? | | ????????????????????# #??????????????????????? | | ????????????????????# #??????????????????????? | | ????????????????????# h #????????????????? ??? | | ????????????????????# h l@#??????????????? ??? | | ????????????????????# ggll#??????????????# #?? | | ????????????????????# g i#??????????????# #?? | | ????????????????????# gggh#??????????????# #?? | | ????????????????????# i i ####???????????# ### | | ##??????????????????# g m ## ???????????# # | | %#??????????????????# ## ???????????# # | | %#??????????????????# g ## ???????????# # | | =#??????????????????# ## ???????????+ # | | #?#######?????????## %## ???????????# # | | ### ## ##????????## !## ???????????# # | | %"# # ######## !%################ ### | | " ! ==% !!!% | | "%% [%= ]*%[ | | % "*%" ! [% %% % % | | ""= ! =/ %= | ! | | * !% % %= [ ! * | | #### #############+### ############+#### | | ??# #? # #????????? ?? | | ??# !! ? ! # #??????? | | ??# """ !!! # #??????# | | ??# """ !!! # # #??????# """" ! | | ??# """ #? """" """" # #??????# """" | | ??# #? """" """" # #??????# """" | | ??# ! # ?"""" """" # #??????# """" | +----------------------------------------------------+ Best States ------------- Heat Dissipation 48 Energy Generation 18 Energy Capacity 310 Matter Stores 300 Matter Capacity 300 Sight Range 16 Robot Scan Range 15 Terrain Scan Density 10 Additional Mass Support 9 Armor Coverage 450 Resistance: KI 30 Resistance: EM 15 Evasion (%) 63 Targeting Accuracy 20 Recoil Reduction 4 Kinecelleration 40 Relay Coupler Types 2 Relay Coupler Value 37 Item Schematics ----------------- Imp. Grenade Launcher | -8/Materials | Scanalyzed Robot Schematics ------------------ None Fabricated ------------ Nothing Alien Tech Used ----------------- None Achievements -------------- None Challenges ------------ None Game ------ Seed CouplerPhaseMapper Manual? 0 Play Time 02:08:45 Cumulative 160.9 hours Start 2023.11.01 @ 19:45:32 End 2023.11.01 @ 21:56:28 Sessions 1 Manual Loads 0 Difficulty Rogue Special Mode None Game No. 114 Rogue 109 Adventurer 0 Explorer 5 Win Type - Total 2 Types 2/0/0/0/0/0/0/0/0 Lore% 58 Gallery% 68 Achievement% 48 Wizard Run 0 Options --------- ASCII 0 Keyboard 0 Movement Arrows Keybinds 1 Fullscreen 1 Font 18/TerminusBold Map View 76x50 Tactical HUD 1 Map Filters NONE Filters NONE Steam 1 RUN: e60d9f49-9398-43de-b491-499f897ccfb1